Cogmind - Beta 9.2 @@@ ROGUE MODE // 2019.11.17 @ 21:20:41 Player: Akiishi Result: Destroyed by G-34 Mercenary with Small Laser Performance ------------- Evolutions (0) 0 Regions Visited (1) 200 Robots Destroyed (7) 35 Value Destroyed (166) 166 Prototype IDs (0) 0 Alien Tech Used (0) 0 Bonus (0) 0 TOTAL SCORE: 401 Bonus ------- None Cogmind --------- Core Integrity 0/250 Matter 290/300 Energy 123/125 System Corruption 0% Temperature Cool (7) Movement Walking (150) Ox1 Location -10/Materials Parts ------- > --- POWER (1) -------- Light Ion Engine > --- PROPULSION (2) --- Aluminum Leg > --- UTILITY (2) ------ Heat Sink Small Storage Unit > --- WEAPON (2) ------- Heavy Hammer > --- INVENTORY (6) ---- Ion Engine Light Treads Light Treads Beam Cannon Heavy Hammer Peak State ------------ > --- POWER ------------ Ion Engine > --- PROPULSION ------- Aluminum Leg Aluminum Leg > --- UTILITY ---------- Heat Sink Small Storage Unit > --- WEAPON ----------- Heavy Hammer Heavy Hammer > --- INVENTORY -------- Light Ion Engine Light Treads Light Treads Medium Laser Beam Cannon Heavy Hammer [Rating: 9] Favorites ----------- Power Ion Engine Engine Ion Engine Propulsion Aluminum Leg Treads Light Treads Leg Aluminum Leg Utility Small Storage Unit Device Heat Sink Storage Small Storage Unit Weapon Heavy Hammer Energy Gun Medium Laser Energy Cannon Beam Cannon Impact Weapon Heavy Hammer Build | -11 -10 ------- Run | Scr Mat Slots Evolved . | . . Power . | . . Propulsion . | . . Utility . | . . Weapon . | . . Parts Attached 18 | 4 14 Power 2 | 1 1 Engine 2 | 1 1 Core . | . . Reactor . | . . Propulsion 8 | 2 6 Treads 2 | . 2 Leg 6 | 2 4 Wheel . | . . Hover . | . . Flight . | . . Utility 2 | 1 1 Device 1 | . 1 Storage 1 | 1 . Processor . | . . Hackware . | . . Protection . | . . Artifact . | . . Weapon 6 | . 6 Energy Gun 1 | . 1 Energy Cannon 1 | . 1 Ballistic Gun . | . . Ballistic Cannon . | . . Launcher . | . . Special Weapon . | . . Impact Weapon 4 | . 4 Slashing Weapon . | . . Piercing Weapon . | . . Special Melee Weapon . | . . Unidentified Prototypes . | . . Parts Lost 5 | . 5 Power . | . . Propulsion 3 | . 3 Utility . | . . Weapon 2 | . 2 Highest Loss Streak 5 | . 5 Average Slot Usage (%) 88 | . 88 Engine 14 | . 14 Treads 2 | . 2 Leg 25 | . 25 Device 5 | . 5 Storage 14 | . 14 Energy Gun 2 | . 2 Energy Cannon 2 | . 2 Impact Weapon 20 | . 20 Naked Turns . | . . Heaviest Build 16 | 9 16 Greatest Support 40 | 20 40 Greatest Overweight (x) 1 | . 1 Average Overweight (x) . | . . Largest Inventory Capacity 6 | 6 6 Average Capacity 5 | 5 6 Most Carried 6 | 6 6 Average Carried 5 | 3 5 Final Capacity 6 | 6 6 Final Carried 6 | 6 5 Class Distribution -------------------- 100% | Mutant Dominant Class ---------------- Mutant | -10/Materials Resources | -11 -10 ----------- Run | Scr Mat Matter Collected 345 | 240 105 Remotely . | . . Salvage Created 198 | . 198 Parts 15 | . 15 Haulers Intercepted . | . . Recyclers Shooed . | . . Parts Field Recycled . | . . Retrieved Matter . | . . Parts Self-Destructed . | . . Prevented . | . . Kills | -11 -10 ------- Run | Scr Mat Combat Hostiles Destroyed 7 | . 7 Melee 5 | . 5 Classes Destroyed 2 | . 2 Swarmer 3 | . 3 Grunt 4 | . 4 Best Kill Streak 3 | . 3 Combat Bots Only 3 | . 3 Max Kills in Single Turn 1 | . 1 Gunslinging . | . . Exploded . | . . Melee 1 | . 1 Uniques/NPCs Destroyed . | . . Combat | -11 -10 -------- Run | Scr Mat Damage Taken 1006 | . 1006 Core 251 | . 251 Absorbed by Shields . | . . Core Remaining (%) 100 | 100 . Volleys Fired . | . . Largest . | . . Hottest . | . . Shots Fired . | . . Gun . | . . Cannon . | . . Launcher . | . . Special . | . . Kinetic . | . . Thermal . | . . Explosive . | . . Electromagnetic . | . . Robot Hit Streak . | . . Robot Miss Streak . | . . Penetration Max . | . . Secondary Targets . | . . Shots Hit Robots 31 | . 31 Core Hits 5 | . 5 Critical Hits . | . . Critical Kills . | . . Critical Parts Destroyed . | . . Melee Attacks 46 | . 46 Impact 46 | . 46 Slashing . | . . Piercing . | . . Sneak Attacks . | . . Combat Hostiles . | . . Follow-up Attacks 4 | . 4 Damage Inflicted 799 | . 799 Guns . | . . Cannons . | . . Explosions . | . . Melee 799 | . 799 Ramming . | . . Kinetic . | . . Thermal . | . . Explosive . | . . Electromagnetic . | . . Impact 799 | . 799 Slashing . | . . Piercing . | . . Highest Corruption . | . . Average Corruption . | . . Corruption Purged . | . . Overload Shots . | . . Overflow Damage 23 | . 23 Projectiles . | . . Explosions . | . . Melee 23 | . 23 Knockbacks 2 | . 2 Impact 2 | . 2 Kinetic . | . . Secondary . | . . Self-Inflicted Damage . | . . Shots . | . . Rammed . | . . Targets Rammed . | . . Kicked . | . . Crushed . | . . Highest Temperature . | . . Average Temperature . | . . Received Heat Transfer 444 | . 444 Siege Activations . | . . Robots Corrupted . | . . Combat Hostiles . | . . Parts Fried 1 | . 1 Impact Corruptions 4 | . 4 Robots Melted . | . . Combat Hostiles . | . . Parts Melted . | . . Heat Transferred . | . . Parts Sabotaged . | . . Parts Stolen . | . . Parts Stripped . | . . Power Chain Reactions . | . . Missiles Intercepted . | . . Alert | -11 -10 ------- Run | Scr Mat Peak Influence 210 | . 210 Average Influence 87 | . 101 Maximum Alert Level 1 | . 1 Low Security (%) 80 | 100 77 Level 1 19 | . 22 Level 2 . | . . Level 3 . | . . Level 4 . | . . Level 5 . | . . High Security . | . . Max Security . | . . Squads Dispatched 2 | . 2 Investigation 1 | . 1 Extermination . | . . Reinforcement 1 | . 1 Assault . | . . Garrison . | . . Intercept . | . . Construction Impeded . | . . Haulers Reinforced . | . . Stealth | -11 -10 --------- Run | Scr Mat Distress Signals 5 | . 5 Communications Jammed . | . . Distress Signals . | . . Times Spotted 24 | . 24 Peak Tracking Total 8 | . 8 Tactical Retreats 6 | . 6 Traps | -11 -10 ------- Run | Scr Mat Traps Triggered 1 | . 1 Indirectly . | . . Trap Hack Attempts . | . . Triggered . | . . Disarmed . | . . Reprogrammed . | . . Reused . | . . Traps Extracted . | . . Installed . | . . Triggered . | . . Machines | -11 -10 ---------- Run | Scr Mat Machines Disabled . | . . Max in Single Turn . | . . Machines Sabotaged . | . . Garrisons Compromised . | . . Overloaded Fab Kills . | . . Fab Network Shutdowns . | . . Hacking | -11 -10 --------- Run | Scr Mat Machines Accessed . | . . Terminals . | . . Fabricators . | . . Repair Stations . | . . Recycling Units . | . . Scanalyzers . | . . Garrison Access . | . . Total Hacks . | . . Successful . | . . Failed . | . . Catastrophic . | . . Database Lockouts . | . . Manual . | . . Terminals . | . . Fabricators . | . . Repair Stations . | . . Recycling Units . | . . Scanalyzers . | . . Garrison Access . | . . Terminal Hacks . | . . Fabricator Hacks . | . . Repair Station Hacks . | . . Recycling Unit Hacks . | . . Scanalyzer . | . . Garrison Access Hacks . | . . Unauthorized Hacks . | . . Terminals . | . . Fabricators . | . . Repair Stations . | . . Recycling Units . | . . Scanalyzers . | . . Garrison Access . | . . Data Cores Recovered . | . . Used . | . . Hacking Detections . | . . Full Trace Events . | . . Feedback Events . | . . Feedback Blocked . | . . Robot Schematics Acquired . | . . Robots Built . | . . Matter . | . . Time . | . . Total Robot Build Rating . | . . Part Schematics Acquired . | . . Parts Built . | . . Matter . | . . Time . | . . Total Part Build Rating . | . . Parts Repaired . | . . Time . | . . Parts Recycled . | . . Recycled Matter . | . . Retrieved Matter . | . . Retrieved Components . | . . Parts Scanalyzed . | . . Part Schematics Acquired . | . . Parts Damaged . | . . Bothacking | -11 -10 ------------ Run | Scr Mat Used RIF Installer . | . . Robots Hacked . | . . Non-combat . | . . Combat . | . . Robot Hacks Applied . | . . Relay Couplers Released . | . . Robots Rewired . | . . Allies Hacked . | . . Hacks Repelled . | . . Allies | -11 -10 -------- Run | Scr Mat Total Allies . | . . Largest Group . | . . Highest-Rated Group . | . . Highest-Rated Ally . | . . Total Orders . | . . Ally Attacks . | . . Total Damage . | . . Kills . | . . Allies Corrupted . | . . Allies Melted . | . . Intel | -11 -10 ------- Run | Scr Mat Robot Analysis Total . | . . Derelict Logs Recovered . | . . Drone Launches . | . . Drone Recoveries . | . . Exploration | -11 -10 ------------- Run | Scr Mat Turns Passed 439 | 59 380 Spaces Moved 210 | 41 169 Core 5 | 5 . Treads 13 | . 13 Legs 192 | 36 156 Wheels . | . . Hover . | . . Flight . | . . Fastest Speed 50 | 50 120 Average Speed 121 | 111 124 Slowest Speed 160 | 120 160 Overloaded Moves . | . . Propulsion Burnouts . | . . Robots Hopped . | . . Cave-ins Triggered . | . . Exploration Rate (%) 11 | 4 18 Regions Visited 1 Branch Regions . Pre-discovered Areas . | . . Known Exits Taken . | . . Unknown Exits Taken 1 | 1 . Scrap Searched . | . . Spaces Dug . | . . Terrain Destroyed . | . . Melee . | . . Projectile . | . . AOE . | . . Actions | -11 -10 --------- Run | Scr Mat Total 311 | 54 257 Wait 24 | . 24 Move 209 | 40 169 Hop . | . . Pick Up 16 | 10 6 Fast Attach 2 | . 2 Attach 8 | 4 4 Detach . | . . Swap 8 | . 8 Drop 5 | . 5 Fire . | . . Melee 39 | . 39 Ram . | . . Kick . | . . Crush . | . . Escape Stasis . | . . Rewire . | . . Trap . | . . Miscellaneous . | . . Route ------- -11/Scrapyard -10/Materials History --------- Turn | Location | Event 4 | -11/Scrapyard | Discovered new exit (range 15) 60 | -11/Scrapyard | Entered Materials 303 | -10/Materials | Build established: Mutant 360 | -10/Materials | Core integrity fell below 50% 408 | -10/Materials | Core integrity fell below 20% 440 | -10/Materials | Destroyed by G-34 Mercenary with Small Laser Last Messages --------------- Dropped Med. Laser. K-01 Serf collects debris. Acquired Hvy. Hammer. R-06 Scavenger collects Med. Laser. W-16 Scout sends out distress signal. R-06 Scavenger collects Aluminum Leg. W-16 Scout sends out distress signal. G-34 Mercenary knocked back. U-05 Engineer lays Concrete. Aluminum Leg destroyed. Hvy. Hammer follow-up attack on G-47 Trooper. G-47 Trooper knocked back. Aluminum Leg destroyed. Hvy. Hammer destroyed. G-34 Mercenary destroyed. Acquired 35 matter. Acquired Aluminum Leg. Hvy. Hammer follow-up attack on G-34 Mercenary. Hvy. Hammer destroyed. Aluminum Leg destroyed. Map ----- +----------------------------------------------------+ | | | | | | | ??????????????????????????????????????????????? | | ??????????????????????????????????????????????? | | ??????????????????????????????????????????????? | | ??????????????????????????????????????????????? | | ??????????????????????????????????????????????? | | ??????????????????????????????????????????????? | | ?????????????????####?????????????????????????? | | ????????????????? ?????????????????????????? | | ????????????????? #?????????????????????????? | | ?????????????????# #?????????????????????????? | | ?????????????????# #?????????????????????????? | | ?????????????????# #?????????????????????????? | | ????????????????? ##????????????????????????? | | ?????????????????# ?????????????????????????? | | ????????????????##+######?????????????????????? | | ????????????????# #? ?????????????????? | | ????????????????# #? #????????????????? | | ????????????????# #? #????????????????? | | ????????????????# ## #????????????????? | | ????????????????# ## #????????????????? | | ????????????????# ## #????????????????? | | ????????????????# ## #????????????????? | | ???????????###########@### ##???????????????? | | ???????????# ## ## #####+#?????????? | | ???????????# ## ## " ??????????? | | ???????????# """ ## ## "T ????????????? | | ???????????# """"" ##g## [ ??????????????? | | ???????????# """"" /% #? =%= ????????????????? | | ???????????# """"" ## #??#=#?????????????????? | | ???????????# """ ##g#??#%#####?????????????? | | ???????????# ## #??# !*==#?????????????? | | ???????????#] ## #??# ==#?????????????? | | ??????????######+##### ####% #?????????????? | | ??????????# %% [ #?????????????? | | ??????????# #### !!#?????????????? | | ??????????# #??# !!#?????????????? | | ??????????##### #########????????????? | | ??????????????# ""???????? | | ??????????????# ?????? | | ??????????????# " ?????? | | ??????????????# T ??????? | | ??????????????# " ##########??????? | | ??????????????# """"""" #???????????????? | | ??????????????# """"""" #???????????????? | | ??????????????# """"""" #???????????????? | | ??????????????# "???""" #???????????????? | | ??????????????+ "????"" #???????????????? | +----------------------------------------------------+ Best States ------------- Heat Dissipation 35 Energy Generation 10 Energy Capacity 250 Matter Stores 300 Matter Capacity 300 Sight Range 16 Terrain Scan Density 10 Evasion (%) 40 Recoil Reduction 2 Item Schematics ----------------- None Robot Schematics ------------------ None Fabricated ------------ Nothing Alien Tech Used ----------------- None Achievements -------------- None Challenges ------------ None Game ------ Seed HardcellRiotSteel Manual? 0 Play Time 00:19:29 Cumulative 4.4 hours Start 2019.11.17 @ 20:09:44 End 2019.11.17 @ 21:20:41 Sessions 1 Manual Loads 0 Difficulty Rogue Special Mode None Game No. 14 Rogue 14 Adventurer 0 Explorer 0 Win Type - Total 0 Types 0/0/0/0/0/0/0 Lore% 15 Gallery% 10 Achievement% 9 Wizard Run 0 Options --------- ASCII 0 Keyboard 0 Movement Numpad Keybinds 0 Fullscreen 1 Font 18/SmallcapsGlow Map View 76x50 Tactical HUD 0 Map Filters NONE Filters NONE Steam 1 RUN: 4b9d1900-b051-4602-b22c-ab6ada058699